Workbook

Sheet PLEASE READ
A1: The content in this spreadsheet is for informational purposes only. You should not construe any such information or other material as legal, tax, investment, financial, or other advice. You alone assume the sole responsibility of evaluating the merits and risks associated with the use of any information or other Content on the Site before making any decisions based on such information or other Content. You agree not to hold CFA Institute or its subsidiaries liable for any possible claim arising from any decision you make based on information or content made available to you through this spreadsheet.

Sheet 2.A.12
A1: Going from an annualized XIRR to an unannualized SI-IRR
E2: Check calculation
B3: External Cash Flows & | E3: CF's Invested
A4: Dates | B4: Ending Valuation | C4: Explanation | E4: at IRR
A5: 2020-09-01 | B5: -1000000 | C5: Contribution | E5: =B5*(1+B11)^((A7-A5)/(A7-A5)) -> -1023774.761 | F5: =B5*(1+B11)^((A7-A5)/(A7-A5))
A6: 2020-09-10 | B6: -75000 | C6: Contribution | E6: =B6*(1+B11)^((A7-A6)/(A7-A5)) -> -76225.23879 | F6: =B6*(1+B11)^((A7-A6)/(A7-A5))
A7: 2020-09-30 | B7: 1100000 | C7: Portfolio value as of 30 September 2020 | E7: =B7 -> 1100000 | F7: =B7
B8: =XIRR(B5:B7,A5:A7) -> 0.3441103518 | C8: Calculated annualized return using XIRR | E8: =SUM(E5:E7) -> 0.000128043117 | F8: =SUM(E5:E7)
B11: =(1+B8)^((A7-A5)/365)-1 -> 0.02377476108 | C11: Unannualized return

Sheet 2.A.24 End of Day
A1: Modified Dietz - End of Day Cash Flow Assumption
D3: Day Wtg (EOD) | F3: Day Wtd CF
A4: 2019-05-31 | B4: BMV | C4: 100000
A5: 2019-06-06 | B5: CF | C5: -2000 | D5: =(A7-A5)/(A7-A4) -> 0.8 | E5: =(A7-A5)/(A7-A4) | F5: =C5*D5 -> -1600 | G5: =C5*D5
A6: 2019-06-11 | B6: CF | C6: 20000 | D6: =(A7-A6)/(A7-A4) -> 0.6333333333 | E6: =(A7-A6)/(A7-A4) | F6: =C6*D6 -> 12666.66667 | G6: =C6*D6
A7: 2019-06-30 | B7: EMV | C7: 135000
A9: Total Cash Flow | C9: =C5+C6 -> 18000 | D9: =C5+C6
A10: Weighted Cash Flow | C10: =F5+F6 -> 11066.66667 | D10: =F5+F6
A12: Numerator | C12: =C7-C4-C5-C6 -> 17000 | D12: =C7-C4-C5-C6
A13: Denominator | C13: =C4+F5+F6 -> 111066.6667 | D13: =C4+F5+F6
A14: Return | C14: =C12/C13 -> 0.1530612245 | D14: =C12/C13

Sheet 2.A.24 Beg of Day
A1: Modified Dietz - Beginning of Day Cash Flow Assumption
D3: Day Wtg (BOD) | F3: Day Wtd CF
A4: 2019-05-31 | B4: BMV | C4: 100000
A5: 2019-06-06 | B5: CF | C5: -2000 | D5: =(A7-A5+1)/(A7-A4) -> 0.8333333333 | E5: =(A7-A5+1)/(A7-A4) | F5: =C5*D5 -> -1666.666667 | G5: =C5*D5
A6: 2019-06-11 | B6: CF | C6: 20000 | D6: =(A7-A6+1)/(A7-A4) -> 0.6666666667 | E6: =(A7-A6+1)/(A7-A4) | F6: =C6*D6 -> 13333.33333 | G6: =C6*D6
A7: 2019-06-30 | B7: EMV | C7: 135000
A9: Total Cash Flow | C9: =C5+C6 -> 18000 | D9: =C5+C6
A10: Weighted Cash Flow | C10: =F5+F6 -> 11666.66667 | D10: =F5+F6
A12: Numerator | C12: =C7-C4-C5-C6 -> 17000 | D12: =C7-C4-C5-C6
A13: Denominator | C13: =C4+F5+F6 -> 111666.6667 | D13: =C4+F5+F6
A14: Return | C14: =C12/C13 -> 0.152238806 | D14: =C12/C13

Sheet 2.A.24 End of Day LCF
A1: Modified Dietz - End of Day Cash Flow Assumption with Large Cash Flow
D3: Day Wtg (EOD) | F3: Day Wtd CF
A4: 2019-05-31 | B4: BMV | C4: 100000
A5: 2019-06-06 | B5: CF | C5: -2000 | D5: =(A7-A5)/(A7-A4) -> 0.4545454545 | E5: =(A7-A5)/(A7-A4) | F5: =C5*D5 -> -909.0909091 | G5: =C5*D5
A6: 2019-06-11 | B6: CF | C6: 20000 | D6: =(A7-A6)/(A7-A4) -> 0 | E6: =(A7-A6)/(A7-A4) | F6: =C6*D6 -> 0 | G6: =C6*D6
A7: 2019-06-11 | B7: MV | C7: 125000
A8: 2019-06-30 | B8: EMV | C8: 135000
A10: Sub-period 1 Calculation
A11: Numerator | C11: =C7-C4-C5-C6 -> 7000 | D11: =C7-C4-C5-C6
A12: Denominator | C12: =C4+F5+F6 -> 99090.90909 | D12: =C4+F5+F6
A13: Return | C13: =C11/C12 -> 0.07064220183 | D13: =C11/C12
A15: Sub-period 2 Calculation
A16: Numerator | C16: =C8-C7 -> 10000 | D16: =C8-C7
A17: Denominator | C17: =C7 -> 125000 | D17: =C7
A18: Return | C18: =C16/C17 -> 0.08 | D18: =C16/C17
A20: Total sub-periods 1 & 2 | C20: =(1+C13)*(1+C18)-1 -> 0.156293578 | D20: =(1+C13)*(1+C18)-1

Sheet 2.A.29
A4: SI-Modified Dietz | M4: SI-IRR check calculation
A5: Dates | B5: Terminal Value | C5: Cash Flows (CF) | D5: Day of CF/Valuation | E5: Wtd CF | F5: Numerator | G5: Denominator | H5: Return | M5: Dates of Values & CF's | N5: Values & CF's | O5: NPV | P5: Days invested
A6: 2016-12-31 | C6: 2000000 | D6: =A6-$A$6 -> 0 | E6: =C6*($D$19-$D$6)/$D$19 -> 2000000 | M6: 2016-12-31 | N6: -2000000 | O6: =N6*(1+$N$20)^(P6/365) -> -2150908.356 | P6: =$A$19-M6 -> 1461
A7: 2017-01-08 | C7: 200000 | D7: 8 | E7: =C7*($D$19-$D$7)/$D$19 -> 198904.8597 | M7: 2017-01-08 | N7: -200000 | O7: -215005.1779 | P7: 1453
A8: 2017-12-24 | C8: -50000 | D8: 358 | E8: =C8*($D$19-$D$8)/$D$19 -> -37748.11773 | M8: 2017-12-24 | N8: 50000 | O8: 52822.7136 | P8: 1103
A9: 2018-02-20 | C9: -200000 | D9: 416 | E9: =C9*($D$19-$D$9)/$D$19 -> -143052.7036 | M9: 2018-02-20 | N9: 200000 | O9: 210681.5657 | P9: 1045
A10: 2018-03-06 | C10: 150000 | D10: 430 | E10: =C10*($D$19-$D$10)/$D$19 -> 105852.1561 | M10: 2018-03-06 | N10: -150000 | O10: -157901.0696 | P10: 1031
A11: 2018-12-11 | C11: -20000 | D11: 710 | E11: =C11*($D$19-$D$11)/$D$19 -> -10280.62971 | M11: 2018-12-11 | N11: 20000 | O11: 20762.0022 | P11: 751
A12: 2019-06-25 | C12: 100000 | D12: 906 | E12: =C12*($D$19-$D$12)/$D$19 -> 37987.67967 | M12: 2019-06-25 | N12: -100000 | O12: -102801.8746 | P12: 555
A13: 2019-07-03 | C13: 30000 | D13: 914 | E13: =C13*($D$19-$D$13)/$D$19 -> 11232.03285 | M13: 2019-07-03 | N13: -30000 | O13: -30828.28043 | P13: 547
A14: 2019-08-14 | C14: -50000 | D14: 956 | E14: =C14*($D$19-$D$14)/$D$19 -> -17282.68309 | M14: 2019-08-14 | N14: 50000 | O14: 51273.13402 | P14: 505
A15: 2020-03-21 | C15: -200000 | D15: 1176 | E15: =C15*($D$19-$D$15)/$D$19 -> -39014.37372 | M15: 2020-03-21 | N15: 200000 | O15: 202858.2566 | P15: 285
A16: 2020-06-04 | C16: 80000 | D16: 1251 | E16: =C16*($D$19-$D$16)/$D$19 -> 11498.97331 | M16: 2020-06-04 | N16: -80000 | O16: -80840.85885 | P16: 210
A17: 2020-11-22 | C17: -50000 | D17: 1422 | E17: =C17*($D$19-$D$17)/$D$19 -> -1334.702259 | M17: 2020-11-22 | N17: 50000 | O17: 50097.18466 | P17: 39
A18: 2020-12-03 | C18: 150000 | D18: 1433 | E18: =C18*($D$19-$D$18)/$D$19 -> 2874.743326 | M18: 2020-12-03 | N18: -150000 | O18: -150209.2635 | P18: 28
A19: 2020-12-31 | B19: 2300000 | D19: 1461 | F19: =(B19-SUM(C6:C18)) -> 160000 | G19: =SUM(E6:E18) -> 2119637.235 | H19: =F19/G19 -> 0.07548461471 | I19: Cumulative | J19: =F19/G19 | M19: 2020-12-31 | N19: 2300000 | O19: =N19 -> 2300000 | P19: 0
A20: Total | C20: =SUM(C6:C19) -> 2140000 | E20: =SUM(E6:E19) -> 2119637.235 | H20: =(1+H19)^(1/H25)-1 -> 0.01834665813 | I20: Annualized | J20: =(1+H19)^(1/H25)-1 | K20: (Day count used in the Explanation) | M20: XIRR | N20: =XIRR(N6:N19,M6:M19,0.1) -> 0.01833945811 | O20: =SUM(O6:O19) -> -0.02434646524
H21: =(1+H19)^(1/4)-1 -> 0.01835933899 | I21: Annualized | J21: =(1+H19)^(1/4)-1 | K21: (formula using years)
H22: =RATE(4,,-1,(1+H19)) -> 0.01835933899 | I22: Annualized | J22: =RATE(4,,-1,(1+H19)) | K22: (Excel's Rate formula)
H24: =A19-A6 -> 1461 | I24: Day Count
H25: =H24/365 -> 4.002739726 | I25: Implied # of years

Sheet 2.A.36 Comp. Calcs BMV
A1: Beginning Assets Weighting Method
D3: Portfolio | F3: Weighted Return
A4: Portfolio | B4: BMV | C4: Portfolio Weight | D4: Return | E4: Weighted Return | F4: Formula
A5: A | B5: 450000 | C5: =B5/B8 -> 0.1707779886 | D5: 0.12 | E5: =C5*D5 -> 0.02049335863 | F5: =C5*D5
A6: B | B6: 785000 | C6: =B6/B8 -> 0.2979127135 | D6: 0.14 | E6: =C6*D6 -> 0.04170777989 | F6: =C6*D6
A7: C | B7: 1400000 | C7: =B7/B8 -> 0.5313092979 | D7: 0.11 | E7: =C7*D7 -> 0.05844402277 | F7: =C7*D7
A8: Total | B8: =SUM(B5:B7) -> 2635000 | C8: =SUM(C5:C7) -> 1 | E8: =SUM(E5:E7) -> 0.1206451613 | F8: =SUM(E5:E7)

Sheet 2.A.36 Comp. Calcs BMV+Wtd CF
A1: Beginning Assets Plus Weighted External Cash Flow method
C3: Weighted | D3: BMV plus | E3: BMV plus | F3: Portfolio | J3: Return
A4: Portfolio | B4: BMV | C4: Cash Flows | D4: Wtd CFs | E4: Wtd CFs (%) | F4: Return | G4: Weighted Return | J4: Formula
A5: A | B5: 450000 | C5: 75000 | D5: =B5+C5 -> 525000 | E5: =D5/D8 -> 0.1895306859 | F5: 0.12 | G5: =E5*F5 -> 0.02274368231 | I5: Numerator | J5: =(D5*F5)+(D6*F6)+(D7*F7) -> 337100 | K5: =(D5*F5)+(D6*F6)+(D7*F7)
A6: B | B6: 785000 | C6: 120000 | D6: =B6+C6 -> 905000 | E6: =D6/D8 -> 0.3267148014 | F6: 0.14 | G6: =E6*F6 -> 0.0457400722 | I6: Denominator | J6: =D8 -> 2770000 | K6: =D8
A7: C | B7: 1400000 | C7: -60000 | D7: =B7+C7 -> 1340000 | E7: =D7/D8 -> 0.4837545126 | F7: 0.11 | G7: =E7*F7 -> 0.05321299639 | I7: Return | J7: =J5/J6 -> 0.1216967509 | K7: =J5/J6
A8: Total | B8: =SUM(B5:B7) -> 2635000 | C8: =SUM(C5:C7) -> 135000 | D8: =SUM(D5:D7) -> 2770000 | E8: =SUM(E5:E7) -> 1 | G8: =SUM(G5:G7) -> 0.1216967509

Sheet 2.A.36 Comp. Calcs Agg Method
A1: Aggregate Return method (using Modified Dietz)
F3: Portfolio | G3: BMV plus | J3: Return
A4: Portfolio | B4: BMV | C4: EMV | D4: Cash Flows | E4: Wtd CFs | F4: Return | G4: Wtd CFs (%) | J4: Formula
A5: A | B5: 450000 | C5: 665000 | D5: 150000 | E5: 75000 | F5: 0.12 | G5: =E5/E8 -> 0.5555555556 | I5: Numerator | J5: =(C8-B8-D8) -> 340000 | K5: =(C8-B8-D8)
A6: B | B6: 785000 | C6: 1140000 | D6: 240000 | E6: 120000 | F6: 0.14 | G6: =E6/E8 -> 0.8888888889 | I6: Denominator | J6: =(B8+E8) -> 2770000 | K6: =(B8+E8)
A7: C | B7: 1400000 | C7: 1440000 | D7: -120000 | E7: -60000 | F7: 0.11 | G7: =E7/E8 -> -0.4444444444 | I7: Return | J7: =J5/J6 -> 0.1227436823 | K7: =J5/J6
A8: Total | B8: =SUM(B5:B7) -> 2635000 | C8: =SUM(C5:C7) -> 3245000 | D8: =SUM(D5:D7) -> 270000 | E8: =SUM(E5:E7) -> 135000 | G8: =SUM(G5:G7) -> 1

Sheet 2.A.39
E2: Combined | G2: Combined
A3: Date | B3: CF or TV | C3: Fund 1 | D3: Fund 2 | E3: Fund 1 & 2 | F3: Fund 3 | G3: Fund 1, 2 & 3
A4: 2018-12-31 | B4: CF | C4: -1000000 | E4: =SUM(C4:D4) -> -1000000 | G4: =C4+D4+F4 -> -1000000
A5: 2019-01-15 | B5: CF | C5: -10000 | E5: =SUM(C5:D5) -> -10000 | G5: =C5+D5+F5 -> -10000
A6: 2019-12-31 | B6: Terminal Value | C6: 1090000
A7: 2020-02-15 | B7: CF | D7: -5000000 | E7: -5000000 | G7: -5000000
A8: 2020-06-30 | B8: CF | D8: -1000000 | E8: -1000000 | G8: -1000000
A9: 2020-12-31 | B9: Terminal Value | C9: 1100000 | D9: 6500000 | E9: 7600000
A10: 2021-02-12 | B10: CF | F10: -4000000 | G10: -4000000
A11: 2021-03-15 | B11: CF | C11: 500000 | G11: 500000
A12: 2021-12-31 | B12: Terminal Value | C12: 900000 | D12: 6700000 | F12: 4200000 | G12: 11800000
A16: Year | B16: IRR Calc | C16: Formula
A17: 2019 | B17: =XIRR(C4:C6,A4:A6,0.1) -> 0.07924135625 | C17: =XIRR(C4:C6,A4:A6,0.1)
A18: 2020 | B18: =XIRR(E4:E9,A4:A9,0.1) -> 0.08472698629 | C18: =XIRR(E4:E9,A4:A9,0.1)
A19: 2021 | B19: =XIRR(G4:G12,A4:A12,0.1) -> 0.07331874669 | C19: =XIRR(G4:G12,A4:A12,0.1)

Sheet 2.A.50
C1: Net MWR | D1: Net MWR
C2: with | D2: without
C3: Subscription | D3: Subscription
C4: Line of Credit | D4: Line of Credit
A6: Date | B6: Transaction Type | C6: Cash Flow | D6: Cash Flow
A7: 2020-01-06 | B7: Subscription LOC Drawdown | D7: -1000000
A8: 2020-07-01 | B8: Subscription LOC Drawdown | D8: -500000
A9: 2020-10-01 | B9: Subscription LOC Drawdown | D9: -500000
A10: 2020-12-15 | B10: Capital Call | C10: -2000000
A11: 2021-10-01 | B11: Capital Call | C11: -1000000 | D11: -1000000
A12: 2021-12-31 | B12: Ending Fair Value | C12: 3500000 | D12: 3500000
B13: SI-MWR | C13: =XIRR(C10:C12,A10:A12,0.1) -> 0.2147485316 | D13: =XIRR(D7:D12,A7:A12,0.1) -> 0.1328392327
